fUST/lending_fUST_20240721
["ID","MTS","AMOUNT","RATE_DAILY","PERIOD"]
[332795150,1721530238827,-517.67911252,0.00013698,2]
[332795151,1721530238844,-504.96394877,0.00013698,2]
[332795152,1721530238853,-500.0,0.00013698,2]
[332795153,1721530238862,-500.0,0.00013698,2]
[332795154,1721530238871,-500.0,0.00013698,2]
[332795155,1721530238881,-354.13967986,0.00013698,2]
[332795156,1721530238890,-543.78739897,0.00013698,2]
[332795157,1721530238899,-500.0,0.00013698,2]
[332795158,1721530238908,-503.91738356,0.00013698,2]
[332795159,1721530238917,-502.57095392,0.00013698,2]
[332795160,1721530238928,-520.34,0.00013698,2]
[332795161,1721530238939,-361.5040045,0.00013698,2]
[332795162,1721530238950,-500.0,0.00013698,2]
[332795163,1721530238960,-500.0,0.00013698,2]
[332795164,1721530238970,-505.92769148,0.00013698,2]
[332795165,1721530238982,-500.0,0.00013698,2]
[332795166,1721530238993,-500.0,0.00013698,2]
[332795167,1721530239004,-534.39,0.00013698,2]
[332795168,1721530239015,-500.0,0.00013698,2]
[332795169,1721530239027,-500.0,0.00013698,2]
[332795170,1721530239039,-500.0,0.00013698,2]
[332795171,1721530239050,-483.36756744,0.00013698,2]
[332795172,1721530239059,-500.0,0.00013698,2]
[332795173,1721530239070,-500.0,0.00013698,2]
[332795174,1721530239081,-297.81478133,0.00013698,2]
[332795175,1721530239092,-500.0,0.00013698,2]
[332795176,1721530239104,-1735.28,0.00013698,2]
[332795177,1721530239115,-1744.21,0.00013698,2]
[332795178,1721530239127,-500.78,0.00013698,2]
[332795179,1721530239138,-500.0,0.00013698,2]
[332795180,1721530239149,-500.0,0.00013698,2]
[332795181,1721530239161,-500.0,0.00013698,2]
[332795182,1721530239173,-500.0,0.00013698,2]
[332795183,1721530239184,-500.0,0.00013698,2]
[332795184,1721530239193,-500.0,0.00013698,2]
[332795185,1721530239203,-500.0,0.00013698,2]
[332795186,1721530239441,-500.0,0.00013698,2]
[332795187,1721530239451,-500.0,0.00013698,2]
[332795188,1721530239463,-500.0,0.00013698,2]
[332795189,1721530239473,-500.0,0.00013698,2]
[332795190,1721530239482,-633.18,0.00013698,2]
[332795191,1721530239495,-500.0,0.00013698,2]
[332795192,1721530239504,-500.0,0.00013698,2]
[332795193,1721530239514,-500.0,0.00013698,2]
[332795194,1721530239523,-1173.25,0.00013698,2]
[332795195,1721530239533,-344.22504912,0.00013698,2]
[332795196,1721530239542,-500.0,0.00013698,2]
[332795197,1721530239552,-500.81639661,0.00013698,2]
[332795198,1721530239562,-500.0,0.00013698,2]
[332795199,1721530239572,-500.0,0.00013698,2]
[332795200,1721530239582,-500.0,0.00013698,2]
[332795201,1721530239594,-500.0,0.00013698,2]
[332795202,1721530239604,-500.0,0.00013698,2]
[332795203,1721530239614,-500.0,0.00013698,2]
[332795204,1721530239623,-500.0,0.00013698,2]
[332795205,1721530239633,-500.0,0.00013698,2]
[332795206,1721530239643,-500.0,0.00013698,2]
[332795207,1721530239653,-500.0,0.00013698,2]
[332795208,1721530239662,-473.39537571,0.00013698,2]
[332795209,1721530239671,-500.0,0.00013698,2]
[332795210,1721530239681,-500.0,0.00013698,2]
[332795211,1721530239691,-503.35722576,0.00013698,2]
[332795212,1721530239701,-500.0,0.00013698,2]
[332795213,1721530239711,-513.96833287,0.00013698,2]
[332795214,1721530239721,-558.09,0.00013698,2]
[332795215,1721530239732,-501.98140105,0.00013698,2]
[332795216,1721530239742,-502.62402367,0.00013698,2]
[332795217,1721530239752,-500.0,0.00013698,2]
[332795218,1721530239764,-823.11,0.00013698,2]
[332795219,1721530239774,-949.96,0.00013698,2]
[332795220,1721530239784,-240.63085601,0.00013698,2]
[332795221,1721530239793,-500.0,0.00013698,2]
[332795222,1721530239804,-2000.0,0.00013698,2]
[332795223,1721530239816,-500.0,0.00013698,2]
[332795224,1721530239825,-500.0,0.00013698,2]
[332795225,1721530239835,-663.11,0.00013698,2]
[332795226,1721530239845,-500.0,0.00013698,2]
[332795227,1721530239855,-500.0,0.00013698,2]
[332795228,1721530239865,-500.0,0.00013698,2]
[332795229,1721530239875,-500.0,0.00013698,2]
[332795230,1721530239886,-571.92256385,0.00013698,2]
[332795231,1721530239896,-552.99,0.00013698,2]
[332795232,1721530239907,-271.74760283,0.00013698,2]
[332795233,1721530239917,-264.6939416,0.00013698,2]
[332795234,1721530239926,-500.0,0.00013698,2]
[332795235,1721530239935,-500.0,0.00013698,2]
[332795236,1721530239946,-500.0,0.00013698,2]
[332795237,1721530239957,-457.76178401,0.00013698,2]
[332795238,1721530239970,-500.0,0.00013698,2]
[332795239,1721530239981,-500.0,0.00013698,2]
[332795241,1721530239990,-500.0,0.00013698,2]
[332795243,1721530240000,-500.0,0.00013698,2]
[332795246,1721530240013,-509.6950994,0.00013698,2]
[332795247,1721530240022,-500.0,0.00013698,2]
[332795248,1721530240032,-600.01472195,0.00013698,2]
[332795249,1721530240042,-342.38173091,0.00013698,2]
[332795250,1721530240052,-500.0,0.00013698,2]
[332795251,1721530240062,-264.6939416,0.00013698,2]
[332795252,1721530240072,-500.0,0.00013698,2]
[332795253,1721530240083,-2331.2,0.00013698,2]
[332795254,1721530240092,-500.0,0.00013698,2]
[332795255,1721530240102,-500.0,0.00013698,2]
[332795256,1721530240114,-500.0,0.00013698,2]
[332795257,1721530240125,-500.0,0.00013698,2]
[332795258,1721530240135,-500.0,0.00013698,2]
[332795259,1721530240146,-500.0,0.00013698,2]
[332795260,1721530240157,-500.0,0.00013698,2]
[332795261,1721530240168,-500.0,0.00013698,2]
[332795262,1721530240179,-500.0,0.00013698,2]
[332795263,1721530240190,-228.13644181,0.00013698,2]
[332795264,1721530240201,-500.0,0.00013698,2]
[332795265,1721530240211,-500.0,0.00013698,2]
[332795266,1721530240221,-264.6939416,0.00013698,2]
[332795267,1721530240230,-500.0,0.00013698,2]
[332795268,1721530240240,-829.28,0.00013698,2]
[332795270,1721530240249,-870.11,0.00013698,2]
[332795271,1721530240259,-500.0,0.00013698,2]
[332795273,1721530240269,-500.0,0.00013698,2]
[332795275,1721530240279,-500.0,0.00013698,2]
[332795276,1721530240289,-500.0,0.00013698,2]
[332795277,1721530240298,-811.14,0.00013698,2]
[332795278,1721530240308,-500.0,0.00013698,2]
[332795279,1721530240317,-1056.28,0.00013698,2]
[332795280,1721530240327,-537.44918105,0.00013698,2]
[332795281,1721530240339,-500.0,0.00013698,2]
[332795282,1721530240348,-500.0,0.00013698,2]
[332795283,1721530240358,-500.0,0.00013698,2]
[332795284,1721530240368,-502.29925953,0.00013698,2]
[332795285,1721530240378,-500.0,0.00013698,2]
[332795286,1721530240389,-2579.77,0.00013698,2]
[332795287,1721530240399,-527.46022515,0.00013698,2]
[332795288,1721530240409,-500.0,0.00013698,2]
[332795289,1721530240418,-500.0,0.00013698,2]
[332795290,1721530240429,-350.0,0.00013698,2]
[332795291,1721530240439,-502.14615165,0.00013698,2]
[332795292,1721530240448,-500.0,0.00013698,2]
[332795293,1721530240458,-500.0,0.00013698,2]
[332795294,1721530240468,-500.0,0.00013698,2]
[332795295,1721530240477,-500.0,0.00013698,2]
[332795296,1721530240487,-528.81,0.00013698,2]
[332795298,1721530240497,-500.0,0.00013698,2]
[332795299,1721530240507,-500.0,0.00013698,2]
[332795301,1721530240516,-500.0,0.00013698,2]
[332795302,1721530240526,-500.0,0.00013698,2]
[332795303,1721530240536,-500.0,0.00013698,2]
[332795304,1721530240545,-500.0,0.00013698,2]
[332795305,1721530240555,-500.0,0.00013698,2]
[332795306,1721530240565,-500.0,0.00013698,2]
[332795307,1721530240575,-461.45377278,0.00013698,2]
[332795308,1721530240584,-500.0,0.00013698,2]
[332795309,1721530240595,-500.0,0.00013698,2]
[332795310,1721530240604,-500.0,0.00013698,2]
[332795311,1721530240615,-500.0,0.00013698,2]
[332795312,1721530240624,-500.0,0.00013698,2]
[332795313,1721530240634,-500.0,0.00013698,2]
[332795314,1721530240644,-500.0,0.00013698,2]
[332795315,1721530240654,-500.0,0.00013698,2]
[332795316,1721530240663,-516.03261185,0.00013698,2]
[332795317,1721530240673,-500.0,0.00013698,2]
[332795318,1721530240683,-1345.14,0.00013698,2]
[332795319,1721530240692,-500.0,0.00013698,2]
[332795320,1721530240701,-500.0,0.00013698,2]
[332795321,1721530240711,-500.0,0.00013698,2]
[332795322,1721530240721,-514.31104745,0.00013698,2]
[332795323,1721530240731,-500.0,0.00013698,2]
[332795324,1721530240742,-2439.07,0.00013698,2]
[332795325,1721530240752,-500.0,0.00013698,2]
[332795326,1721530240762,-500.0,0.00013698,2]
[332795327,1721530240772,-500.0,0.00013698,2]
[332795328,1721530240782,-500.0,0.00013698,2]
[332795329,1721530240793,-500.0,0.00013698,2]
[332795330,1721530240804,-500.0,0.00013698,2]
[332795331,1721530240814,-500.0,0.00013698,2]
[332795332,1721530240825,-387.79553029,0.00013698,2]
[332795333,1721530240835,-500.68634203,0.00013698,2]
[332795334,1721530240846,-502.80562634,0.00013698,2]
[332795335,1721530240857,-500.0,0.00013698,2]
[332795336,1721530240867,-500.0,0.00013698,2]
[332795337,1721530240876,-500.0,0.00013698,2]
[332795338,1721530240885,-634.1,0.00013698,2]
[332795339,1721530240895,-500.0,0.00013698,2]
[332795340,1721530240905,-500.0,0.00013698,2]
[332795341,1721530240915,-506.56216054,0.00013698,2]
[332795342,1721530240924,-500.0,0.00013698,2]
[332795343,1721530240933,-500.0,0.00013698,2]
[332795344,1721530240943,-502.47704321,0.00013698,2]
[332795345,1721530240952,-500.0,0.00013698,2]
[332795346,1721530240962,-500.0,0.00013698,2]
[332795347,1721530240971,-500.0,0.00013698,2]
[332795348,1721530240981,-500.0,0.00013698,2]
[332795349,1721530240990,-500.0,0.00013698,2]
[332795350,1721530241000,-975.87,0.00013698,2]
[332795351,1721530241010,-537.06029466,0.00013698,2]
[332795352,1721530241020,-500.0,0.00013698,2]
[332795353,1721530241029,-500.0,0.00013698,2]
[332795354,1721530241039,-500.0,0.00013698,2]
[332795355,1721530241049,-511.49784745,0.00013698,2]
[332795356,1721530241058,-758.9,0.00013698,2]
[332795357,1721530241067,-931.1,0.00013698,2]
[332795358,1721530241077,-777.01,0.00013698,2]
[332795359,1721530241087,-500.0,0.00013698,2]
[332795360,1721530241096,-504.28120277,0.00013698,2]
[332795361,1721530241106,-500.0,0.00013698,2]
[332795362,1721530241115,-500.0,0.00013698,2]
[332795363,1721530241124,-500.0,0.00013698,2]
[332795364,1721530241133,-199.22803893,0.00013698,2]
[332795365,1721530241143,-500.0,0.00013698,2]
[332795366,1721530241152,-617.71,0.00013698,2]
[332795367,1721530241162,-500.0,0.00013698,2]
[332795368,1721530241172,-500.0,0.00013698,2]
[332795369,1721530241181,-500.0,0.00013698,2]
[332795370,1721530241191,-500.0,0.00013698,2]
[332795371,1721530241200,-596.36,0.00013698,2]
[332795372,1721530241209,-500.0,0.00013698,2]
[332795373,1721530241220,-500.0,0.00013698,2]
[332795374,1721530241231,-500.0,0.00013698,2]
[332795375,1721530241242,-500.0,0.00013698,2]
[332795376,1721530241253,-630.88,0.00013698,2]
[332795377,1721530241265,-500.0,0.00013698,2]
[332795378,1721530241274,-624.2,0.00013698,2]
[332795379,1721530241285,-500.0,0.00013698,2]
[332795380,1721530241295,-500.0,0.00013698,2]
[332795381,1721530241305,-500.0,0.00013698,2]
[332795382,1721530241316,-500.0,0.00013698,2]
[332795383,1721530241328,-2056.1,0.00013698,2]
[332795384,1721530241340,-533.52,0.00013698,2]
[332795385,1721530241349,-2839.57,0.00013698,2]
[332795386,1721530241358,-500.0,0.00013698,2]
[332795387,1721530241368,-500.0,0.00013698,2]
[332795388,1721530241378,-500.0,0.00013698,2]
[332795389,1721530241388,-502.85,0.00013698,2]
[332795390,1721530241399,-500.0,0.00013698,2]
[332795391,1721530241411,-502.44781403,0.00013698,2]
[332795392,1721530241424,-500.0,0.00013698,2]
[332795393,1721530241434,-500.0,0.00013698,2]
[332795394,1721530241443,-500.0,0.00013698,2]
[332795395,1721530241452,-759.39,0.00013698,2]
[332795396,1721530241462,-500.0,0.00013698,2]
[332795397,1721530241471,-500.0,0.00013698,2]
[332795398,1721530241481,-500.0,0.00013698,2]
[332795399,1721530241490,-500.0,0.00013698,2]
[332795400,1721530241501,-500.0,0.00013698,2]
[332795401,1721530241511,-500.0,0.00013698,2]
[332795402,1721530241520,-500.0,0.00013698,2]
[332795403,1721530241530,-500.0,0.00013698,2]
[332795404,1721530241539,-500.0,0.00013698,2]
[332795405,1721530241549,-500.0,0.00013698,2]
[332795406,1721530241558,-809.08,0.00013698,2]
[332795407,1721530241567,-898.53,0.00013698,2]
[332795408,1721530241578,-558.39,0.00013698,2]
[332795409,1721530241587,-500.0,0.00013698,2]
[332795410,1721530241597,-1694.23,0.00013698,2]
[332795411,1721530241606,-500.0,0.00013698,2]
[332795412,1721530241616,-500.0,0.00013698,2]
[332795413,1721530241625,-514.88550787,0.00013698,2]
[332795414,1721530241635,-1350.15,0.00013698,2]
[332795415,1721530241645,-500.0,0.00013698,2]
[332795416,1721530241655,-505.23104049,0.00013698,2]
[332795417,1721530241665,-589.98,0.00013698,2]
[332795418,1721530241674,-1300.82,0.00013698,2]
[332795419,1721530241684,-500.0,0.00013698,2]
[332795420,1721530241694,-744.64,0.00013698,2]
[332795421,1721530241703,-1063.01,0.00013698,2]
[332795422,1721530241713,-500.0,0.00013698,2]
[332795423,1721530241723,-798.45,0.00013698,2]
[332795424,1721530241732,-1077.14,0.00013698,2]
[332795425,1721530241742,-2867.08,0.00013698,2]
[332795426,1721530241751,-502.00479006,0.00013698,2]
[332795427,1721530241760,-500.0,0.00013698,2]
[332795428,1721530241771,-500.0,0.00013698,2]
[332795429,1721530241780,-607.27,0.00013698,2]
[332795430,1721530241789,-500.0,0.00013698,2]
[332795431,1721530241799,-500.0,0.00013698,2]
[332795432,1721530241808,-500.0,0.00013698,2]
[332795433,1721530241818,-500.0,0.00013698,2]
[332795434,1721530241828,-806.1,0.00013698,2]
[332795435,1721530241839,-500.0,0.00013698,2]
[332795436,1721530241850,-543.25,0.00013698,2]
[332795437,1721530241861,-502.06907572,0.00013698,2]
[332795438,1721530241872,-512.99821633,0.00013698,2]
[332795439,1721530241882,-473.59674258,0.00013698,2]
[332795440,1721530241892,-500.0,0.00013698,2]
[332795441,1721530241902,-500.0,0.00013698,2]
[332795442,1721530241911,-1146.38,0.00013698,2]
[332795443,1721530241922,-501.53767902,0.00013698,2]
[332795444,1721530241931,-500.0,0.00013698,2]
[332795445,1721530241941,-614.64,0.00013698,2]
[332795446,1721530241951,-500.0,0.00013698,2]
[332795447,1721530241960,-500.0,0.00013698,2]
[332795448,1721530241970,-4174.87,0.00013698,2]
[332795449,1721530241980,-500.0,0.00013698,2]
[332795450,1721530241989,-500.0,0.00013698,2]
[332795451,1721530241999,-500.0,0.00013698,2]
[332795452,1721530242009,-500.0,0.00013698,2]
[332795453,1721530242018,-504.61777039,0.00013698,2]
[332795454,1721530242027,-513.01851565,0.00013698,2]
[332795455,1721530242036,-1426.74,0.00013698,2]
[332795456,1721530242045,-500.0,0.00013698,2]
[332795457,1721530242055,-500.0,0.00013698,2]
[332795458,1721530242065,-500.0,0.00013698,2]
[332795459,1721530242075,-555.45,0.00013698,2]
[332795460,1721530242085,-500.0,0.00013698,2]
[332795461,1721530242094,-697.56,0.00013698,2]
[332795462,1721530242104,-511.85,0.00013698,2]
[332795463,1721530242114,-500.0,0.00013698,2]
[332795464,1721530242123,-500.0,0.00013698,2]
[332795465,1721530242133,-500.0,0.00013698,2]
[332795466,1721530242142,-500.0,0.00013698,2]
[332795467,1721530242152,-512.82091932,0.00013698,2]
[332795468,1721530242161,-500.0,0.00013698,2]
[332795469,1721530242171,-500.0,0.00013698,2]
[332795470,1721530242180,-500.0,0.00013698,2]
[332795471,1721530242190,-631.7,0.00013698,2]
[332795472,1721530242199,-500.0,0.00013698,2]
[332795473,1721530242208,-500.0,0.00013698,2]
[332795474,1721530242219,-500.0,0.00013698,2]
[332795475,1721530242229,-500.0,0.00013698,2]
[332795476,1721530242239,-500.0,0.00013698,2]
[332795477,1721530242248,-500.0,0.00013698,2]
[332795478,1721530242258,-500.0,0.00013698,2]
[332795479,1721530242268,-1172.88,0.00013698,2]
[332795480,1721530242278,-1555.37,0.00013698,2]
[332795481,1721530242287,-500.0,0.00013698,2]
[332795482,1721530242296,-500.0,0.00013698,2]
[332795483,1721530242307,-500.0,0.00013698,2]
[332795484,1721530242316,-1811.52,0.00013698,2]
[332795485,1721530242325,-500.0,0.00013698,2]
[332795486,1721530242336,-500.0,0.00013698,2]
[332795487,1721530242347,-297.39668351,0.00013698,2]
[332795488,1721530242357,-516.4052042,0.00013698,2]
[332795489,1721530242366,-500.90681848,0.00013698,2]
[332795490,1721530242376,-500.0,0.00013698,2]
[332795491,1721530242386,-500.0,0.00013698,2]
[332795492,1721530242396,-500.0,0.00013698,2]
[332795493,1721530242405,-500.0,0.00013698,2]
[332795494,1721530242416,-535.76075308,0.00013698,2]
[332795495,1721530242425,-518.7292107,0.00013698,2]
[332795496,1721530242435,-500.0,0.00013698,2]
[332795497,1721530242444,-500.0,0.00013698,2]
[332795498,1721530242454,-500.0,0.00013698,2]
[332795499,1721530242465,-500.0,0.00013698,2]
[332795500,1721530242474,-500.0,0.00013698,2]
[332795501,1721530242484,-500.0,0.00013698,2]
[332795502,1721530242494,-500.0,0.00013698,2]
[332795503,1721530242504,-500.0,0.00013698,2]
[332795504,1721530242515,-814.99,0.00013698,2]
[332795505,1721530242526,-508.35580267,0.00013698,2]
[332795506,1721530242537,-265.28233253,0.00013698,2]
[332795507,1721530242549,-511.95798033,0.00013698,2]
[332795508,1721530242560,-500.0,0.00013698,2]
[332795509,1721530242569,-556.06,0.00013698,2]
[332795510,1721530242579,-789.16,0.00013698,2]
[332795511,1721530242592,-500.0,0.00013698,2]
[332795512,1721530242602,-1933.06,0.00013698,2]
[332795513,1721530242612,-500.0,0.00013698,2]
[332795515,1721530242623,-2621.65,0.00013698,2]
[332795516,1721530242634,-895.45,0.00013698,2]
[332795517,1721530242643,-500.0,0.00013698,2]
[332795518,1721530242653,-1897.45,0.00013698,2]
[332795519,1721530242663,-500.0,0.00013698,2]
[332795520,1721530242673,-1622.54,0.00013698,2]
[332795521,1721530242683,-500.0,0.00013698,2]
[332795522,1721530242694,-500.0,0.00013698,2]
[332795523,1721530242703,-500.0,0.00013698,2]
[332795524,1721530242715,-500.0,0.00013698,2]
[332795525,1721530242725,-500.0,0.00013698,2]
[332795526,1721530242735,-567.09916693,0.00013698,2]
[332795527,1721530242746,-500.0,0.00013698,2]
[332795528,1721530242755,-500.0,0.00013698,2]
[332795529,1721530242764,-500.0,0.00013698,2]
[332795530,1721530242773,-837.58,0.00013698,2]
[332795531,1721530242783,-500.0,0.00013698,2]
[332795532,1721530242792,-500.6716079,0.00013698,2]
[332795533,1721530242802,-509.5921109,0.00013698,2]
[332795534,1721530242811,-500.0,0.00013698,2]
[332795535,1721530242821,-500.0,0.00013698,2]
[332795536,1721530242830,-500.0,0.00013698,2]
[332795537,1721530242840,-500.0,0.00013698,2]
[332795539,1721530242850,-500.0,0.00013698,2]
[332795540,1721530242860,-500.0,0.00013698,2]
[332795542,1721530242869,-500.0,0.00013698,2]
[332795545,1721530242879,-500.0,0.00013698,2]
[332795547,1721530242888,-500.0,0.00013698,2]
[332795550,1721530242897,-500.0,0.00013698,2]
[332795553,1721530242908,-519.30896998,0.00013698,2]
[332795555,1721530242917,-503.48450541,0.00013698,2]
[332795557,1721530242927,-601.89,0.00013698,2]
[332795559,1721530242936,-502.75342232,0.00013698,2]
[332795561,1721530242946,-191.97913078,0.00013698,2]
[332795562,1721530242956,-1643.36,0.00013698,2]
[332795564,1721530242965,-505.38131075,0.00013698,2]
[332795566,1721530242975,-500.0,0.00013698,2]
[332795568,1721530242984,-500.0,0.00013698,2]
[332795569,1721530242993,-500.0,0.00013698,2]
[332795571,1721530243002,-551.1,0.00013698,2]
[332795573,1721530243013,-500.0,0.00013698,2]
[332795575,1721530243022,-457.32546745,0.00013698,2]
[332795576,1721530243032,-500.0,0.00013698,2]
[332795578,1721530243041,-668.01,0.00013698,2]
[332795580,1721530243051,-169.1445557,0.00013698,2]
[332795581,1721530243060,-500.0,0.00013698,2]
[332795584,1721530243070,-500.0,0.00013698,2]
[332795587,1721530243080,-709.72,0.00013698,2]
[332795589,1721530243090,-861.29,0.00013698,2]
[332795591,1721530243100,-500.0,0.00013698,2]
[332795592,1721530243110,-500.0,0.00013698,2]
[332795594,1721530243120,-548.5574355,0.00013698,2]
[332795596,1721530243130,-500.0,0.00013698,2]
[332795597,1721530243140,-500.0,0.00013698,2]
[332795599,1721530243149,-549.44249612,0.00013698,2]
[332795601,1721530243159,-500.0,0.00013698,2]
[332795602,1721530243170,-504.64,0.00013698,2]
[332795604,1721530243179,-500.0,0.00013698,2]
[332795606,1721530243188,-515.62998071,0.00013698,2]
[332795607,1721530243198,-1300.9,0.00013698,2]
[332795609,1721530243207,-646.26,0.00013698,2]
[332795612,1721530243218,-697.5,0.00013698,2]
[332795614,1721530243229,-518.81684462,0.00013698,2]
[332795616,1721530243238,-573.92873852,0.00013698,2]
[332795618,1721530243247,-504.08045759,0.00013698,2]
[332795619,1721530243257,-500.0,0.00013698,2]
[332795621,1721530243268,-907.46,0.00013698,2]
[332795623,1721530243279,-732.99,0.00013698,2]
[332795626,1721530243288,-500.0,0.00013698,2]
[332795628,1721530243298,-500.0,0.00013698,2]
[332795630,1721530243308,-500.0,0.00013698,2]
[332795633,1721530243319,-1489.25,0.00013698,2]
[332795636,1721530243328,-500.0,0.00013698,2]
[332795639,1721530243340,-3462.25,0.00013698,2]
[332795641,1721530243350,-500.0,0.00013698,2]
[332795642,1721530243362,-1836.33,0.00013698,2]
[332795644,1721530243371,-1051.55,0.00013698,2]
[332795646,1721530243382,-509.85901008,0.00013698,2]
[332795648,1721530243392,-736.56,0.00013698,2]
[332795649,1721530243401,-500.0,0.00013698,2]
[332795651,1721530243410,-501.2016491,0.00013698,2]
[332795652,1721530243421,-528.06,0.00013698,2]
[332795653,1721530243430,-503.29603639,0.00013698,2]
[332795654,1721530243439,-741.1,0.00013698,2]
[332795655,1721530243449,-500.0,0.00013698,2]
[332795656,1721530243459,-948.19,0.00013698,2]
[332795657,1721530243469,-1055.7,0.00013698,2]
[332795659,1721530243479,-502.24128874,0.00013698,2]
[332795661,1721530243489,-500.0,0.00013698,2]
[332795663,1721530243499,-657.63,0.00013698,2]
[332795665,1721530243510,-500.0,0.00013698,2]
[332795667,1721530243520,-990.33,0.00013698,2]
[332795670,1721530243530,-500.0,0.00013698,2]
[332795673,1721530243540,-500.0,0.00013698,2]
[332795676,1721530243549,-500.0,0.00013698,2]
[332795679,1721530243559,-500.0,0.00013698,2]
[332795681,1721530243568,-672.79,0.00013698,2]
[332795684,1721530243578,-500.0,0.00013698,2]
[332795686,1721530243588,-3122.49,0.00013698,2]
[332795688,1721530243598,-1219.61,0.00013698,2]
[332795690,1721530243607,-500.0,0.00013698,2]
[332795711,1721530243792,-500.0,0.00013698,2]
[332795713,1721530243803,-547.13910122,0.00013698,2]
[332795715,1721530243812,-500.0,0.00013698,2]
[332795717,1721530243822,-500.0,0.00013698,2]
[332795719,1721530243831,-500.0,0.00013698,2]
[332795721,1721530243841,-500.0,0.00013698,2]
[332795723,1721530243850,-500.0,0.00013698,2]
[332795725,1721530243859,-500.0,0.00013698,2]
[332795727,1721530243869,-500.0,0.00013698,2]
[332795729,1721530243878,-500.0,0.00013698,2]
[332795731,1721530243887,-500.0,0.00013698,2]
[332795733,1721530243897,-500.0,0.00013698,2]
[332795735,1721530243906,-500.0,0.00013698,2]
[332795737,1721530243915,-500.0,0.00013698,2]
[332795739,1721530243926,-500.0,0.00013698,2]
[332795741,1721530243937,-500.0,0.00013698,2]
[332795743,1721530243946,-500.0,0.00013698,2]
[332795745,1721530243956,-4153.2,0.00013698,2]
[332795747,1721530243965,-500.0,0.00013698,2]
[332795749,1721530243978,-500.0,0.00013698,2]
[332795751,1721530243987,-501.44774616,0.00013698,2]
[332795753,1721530243999,-500.0,0.00013698,2]
[332795755,1721530244009,-2349.57,0.00013698,2]
[332795757,1721530244019,-500.0,0.00013698,2]
[332795759,1721530244028,-500.0,0.00013698,2]
[332795761,1721530244039,-500.0,0.00013698,2]
[332795763,1721530244048,-500.0,0.00013698,2]
[332795765,1721530244058,-504.47672826,0.00013698,2]
[332795767,1721530244067,-571.4,0.00013698,2]
[332795769,1721530244077,-500.0,0.00013698,2]
[332795771,1721530244087,-500.0,0.00013698,2]
[332795773,1721530244096,-574.71,0.00013698,2]
[332795775,1721530244106,-1145.92,0.00013698,2]
[332795777,1721530244116,-500.0,0.00013698,2]
[332795779,1721530244126,-500.0,0.00013698,2]
[332795781,1721530244136,-5625.7,0.00013698,2]
[332795783,1721530244146,-624.1,0.00013698,2]
[332795785,1721530244155,-512.34617721,0.00013698,2]
[332795787,1721530244165,-501.5162643,0.00013698,2]
[332795789,1721530244175,-500.0,0.00013698,2]
[332795791,1721530244184,-500.0,0.00013698,2]
[332795793,1721530244194,-500.0,0.00013698,2]
[332795795,1721530244203,-500.0,0.00013698,2]
[332795797,1721530244213,-500.0,0.00013698,2]